[Event "98th Caplin Hastings Masters 2024-25"]
[Site "Hastings"]
[Date "2024.12.29"]
[Round "2.19"]
[White "Suez-Panama, Gilles"]
[Black "Wall, Tim P"]
[Result "0-1"]
[ECO "D04"]
[WhiteElo "1979"]
[BlackElo "2173"]
[Annotator "RC"]
[PlyCount "70"]
[EventDate "2024.12.23"]
[EventType "swiss"]
[EventCountry "ENG"]
[SourceTitle "playchess.com"]
[Source "ChessBase"]
[SourceQuality "1"]
[TimeControl "5400+30"]

1. d4 {[%emt 0:00:38]} d5 {[%emt 0:00:25]} 2. Nf3 {[%emt 0:00:51]} Nf6 {[%emt 0:00:35]} 3. e3 {[%emt 0:01:18]} Bf5 {[%emt 0:02:03]} 4. c4 {[%emt 0:01:33]} e6 {[%emt 0:01:18]} 5. Qb3 {[%emt 0:01:23]} Nc6 {[%emt 0:02:41]} 6. cxd5 {[%emt 0:02:41]} Nb4 {[%emt 0:13:28]} 7. Na3 {[%emt 0:02:29]} exd5 {[%emt 0:19:34]} 8. Bd2 {[%emt 0:01:42]} a5 {[%emt 0:00:35]} 9. Be2 {[%emt 0:10:49]} c6 {[%emt 0:02:45]} 10. O-O {[%emt 0:02:19]} Bd6 {[%emt 0:04:09]} 11. Ne5 {[%emt 0:04:28]} Qe7 {[%emt 0:14:51]} 12. f4 {[%emt 0:02:34]} O-O {[%emt 0:01:00]} 13. Be1 {[%emt 0:04:19]} Ne4 {[%emt 0:01:50]} 14. Qd1 {[%emt 0:01:48]} f6 {[%emt 0:01:36]} 15. Nf3 {[%emt 0:08:54]} Bc7 {[%emt 0:04:05]} 16. Nh4 {[%emt 0:03:46]} Nd6 {[%emt 0:02:30]} 17. Rf3 {[%emt 0:03:11]} Be4 {[%emt 0:05:00]} 18. Rh3 {[%emt 0:00:50]} Rfe8 {[%emt 0:05:13]} 19. Bd2 {[%emt 0:10:25]} Nf7 {[%emt 0:02:50]} 20. Bg4 {[%emt 0:15:17]} Nd6 {[%emt 0:00:15]} 21. Bxb4 {[%emt 0:01:43]} axb4 {[%emt 0:00:10]} 22. Nc2 {[%emt 0:00:05]} b3 {[%emt 0:05:20]} 23. Nb4 {[%emt 0:02:05]} bxa2 {[%emt 0:00:46]} 24. Rxa2 {[%emt 0:00:51]} Nc4 {[%emt 0:01:51]} 25. Rxa8 {[%emt 0:02:29]} Rxa8 {[%emt 0:00:08]} 26. Nd3 {[%emt 0:00:37]} g6 {[%emt 0:03:27]} 27. b3 {[%emt 0:03:30]} Nd6 {[%emt 0:00:42]} 28. Nc5 {[%emt 0:00:22]} f5 {[%emt 0:01:06]} 29. Bf3 {[%emt 0:01:37]} Bxf3 {[%emt 0:00:31]} 30. Qxf3 {[%emt 0:00:41]} Ra1+ {[%emt 0:00:29]} 31. Kf2 {[%emt 0:00:21]} b6 {[%emt 0:00:05]} 32. Nd3 {[%emt 0:05:04]} Ne4+ {[%emt 0:00:06]} 33. Ke2 {[%emt 0:00:16]} Qa3 {[%emt 0:00:13]} 34. Ne1 {[%emt 0:01:12]} Qb2+ {[%emt 0:00:18]} 35. Kd3 {[%emt 0:01:11]} Qd2# {[%emt 0:00:09]} 0-1

[Event "98th Caplin Hastings Masters 2024-25"]
[Site "Hastings"]
[Date "2024.12.29"]
[Round "2.20"]
[White "Ashton, Alannah"]
[Black "Brewer, Callum D"]
[Result "0-1"]
[ECO "B12"]
[WhiteElo "1953"]
[BlackElo "2151"]
[Annotator "RC"]
[PlyCount "138"]
[EventDate "2024.12.23"]
[EventType "swiss"]
[EventCountry "ENG"]
[SourceTitle "playchess.com"]
[Source "ChessBase"]
[SourceQuality "1"]
[TimeControl "5400+30"]

1. e4 {[%emt 0:00:55]} c6 {[%emt 0:00:23]} 2. d4 {[%emt 0:00:04]} d5 {[%emt 0:00:06]} 3. e5 {[%emt 0:00:05]} Bf5 {[%emt 0:00:02]} 4. h4 {[%emt 0:00:05]} a6 {[%emt 0:00:22]} 5. g4 {[%emt 0:04:19]} Bd7 {[%emt 0:00:16]} 6. f4 {[%emt 0:02:21]} h5 {[%emt 0:03:14]} 7. f5 {[%emt 0:10:11]} e6 {[%emt 0:12:50]} 8. fxe6 {[%emt 0:22:11]} Bxe6 {[%emt 0:00:13]} 9. g5 {[%emt 0:03:41]} Ne7 {[%emt 0:04:31]} 10. Bh3 {[%emt 0:05:01]} Nf5 {[%emt 0:07:10]} 11. Qd3 {[%emt 0:02:50]} g6 {[%emt 0:01:15]} 12. Ne2 {[%emt 0:01:41]} c5 {[%emt 0:04:32]} 13. c3 {[%emt 0:02:22]} Nc6 {[%emt 0:00:51]} 14. Nf4 {[%emt 0:14:56]} cxd4 {[%emt 0:15:24]} 15. Nxe6 {[%emt 0:00:31]} fxe6 {[%emt 0:00:05]} 16. Bxf5 {[%emt 0:01:16]} exf5 {[%emt 0:00:02]} 17. cxd4 {[%emt 0:02:56]} Qb6 {[%emt 0:02:41]} 18. Nc3 {[%emt 0:18:34]} Qxd4 {[%emt 0:01:02]} 19. Qxd4 {[%emt 0:00:07]} Nxd4 {[%emt 0:00:03]} 20. Nxd5 {[%emt 0:00:13]} O-O-O {[%emt 0:01:35]} 21. Nf4 {[%emt 0:05:06]} Nf3+ {[%emt 0:09:14]} 22. Ke2 {[%emt 0:01:05]} Nxe5 {[%emt 0:00:02]} 23. Be3 {[%emt 0:00:45]} Bd6 {[%emt 0:02:04]} 24. Rac1+ {[%emt 0:00:29]} Kb8 {[%emt 0:00:47]} 25. Rhd1 {[%emt 0:00:23]} Rhe8 {[%emt 0:02:42]} 26. Nd5 {[%emt 0:00:37]} Ng4 {[%emt 0:06:06]} 27. Kf3 {[%emt 0:00:16]} Nxe3 {[%emt 0:03:59]} 28. Nxe3 {[%emt 0:00:04]} Be5 {[%emt 0:01:06]} 29. b3 {[%emt 0:00:24]} Bd4 {[%emt 0:01:22]} 30. Nc2 {[%emt 0:01:28]} Bb6 {[%emt 0:01:57]} 31. Rxd8+ {[%emt 0:00:23]} Rxd8 {[%emt 0:00:05]} 32. Ne1 {[%emt 0:00:39]} Rd4 {[%emt 0:06:32]} 33. Rc4 {[%emt 0:00:29]} Rxc4 {[%emt 0:05:15]} 34. bxc4 {[%emt 0:00:05]} Bc7 {[%emt 0:00:26]} 35. Nd3 {[%emt 0:00:46]} b6 {[%emt 0:00:07]} 36. c5 {[%emt 0:00:12]} b5 {[%emt 0:01:11]} 37. Nb4 {[%emt 0:00:05]} Kb7 {[%emt 0:02:13]} 38. Nd5 {[%emt 0:00:13]} Kc6 {[%emt 0:00:16]} 39. Ne7+ {[%emt 0:00:06]} Kxc5 {[%emt 0:00:04]} 40. Nxg6 {[%emt 0:00:02]} Kd5 {[%emt 0:01:43]} 41. Ne7+ {[%emt 0:00:47]} Ke6 {[%emt 0:00:33]} 42. Nc6 {[%emt 0:00:10]} Be5 {[%emt 0:02:18]} 43. Nb4 {[%emt 0:01:20]} a5 {[%emt 0:00:03]} 44. Nd3 {[%emt 0:00:18]} Bd6 {[%emt 0:01:25]} 45. Nb2 {[%emt 0:00:41]} a4 {[%emt 0:01:42]} 46. Ke3 {[%emt 0:01:39]} Bg3 {[%emt 0:01:26]} 47. Nd3 {[%emt 0:00:09]} Bxh4 {[%emt 0:00:57]} 48. Kf4 {[%emt 0:00:06]} b4 {[%emt 0:00:35]} 49. Nxb4 {[%emt 0:00:35]} Be1 {[%emt 0:00:15]} 50. Nd3 {[%emt 0:00:16]} Bd2+ {[%emt 0:00:10]} 51. Kf3 {[%emt 0:00:19]} a3 {[%emt 0:01:11]} 52. Kg2 {[%emt 0:01:41]} Bxg5 {[%emt 0:00:11]} 53. Ne1 {[%emt 0:00:11]} Kd5 {[%emt 0:01:11]} 54. Nc2 {[%emt 0:00:06]} Bc1 {[%emt 0:00:14]} 55. Kh3 {[%emt 0:00:57]} Kc4 {[%emt 0:01:12]} 56. Kh4 {[%emt 0:00:27]} f4 {[%emt 0:00:22]} 57. Ne1 {[%emt 0:00:28]} Kc3 {[%emt 0:00:51]} 58. Kxh5 {[%emt 0:00:19]} Bd2 {[%emt 0:00:11]} 59. Nf3 {[%emt 0:00:21]} Be3 {[%emt 0:00:03]} 60. Kg4 {[%emt 0:00:53]} Kb2 {[%emt 0:00:02]} 61. Ne5 {[%emt 0:00:18]} Kxa2 {[%emt 0:00:15]} 62. Nc4 {[%emt 0:00:07]} Kb3 {[%emt 0:00:04]} 63. Nxa3 {[%emt 0:00:07]} Kxa3 {[%emt 0:00:04]} 64. Kf3 {[%emt 0:00:05]} Kb3 {[%emt 0:00:04]} 65. Ke2 {[%emt 0:00:07]} Kc3 {[%emt 0:00:05]} 66. Kd1 {[%emt 0:00:29]} Kd3 {[%emt 0:00:10]} 67. Ke1 {[%emt 0:00:03]} f3 {[%emt 0:00:05]} 68. Kd1 {[%emt 0:00:17]} Bc5 {[%emt 0:00:35]} 69. Ke1 {[%emt 0:00:12]} f2+ {[%emt 0:00:02]} 0-1

[Event "98th Caplin Hastings Masters 2024-25"]
[Site "Hastings"]
[Date "2024.12.29"]
[Round "2.21"]
[White "Bin-Suhayl, Ieysaa"]
[Black "Norinkeviciute, Rasa"]
[Result "1-0"]
[ECO "A46"]
[WhiteElo "2183"]
[BlackElo "1952"]
[Annotator "RC"]
[PlyCount "77"]
[EventDate "2024.12.23"]
[EventType "swiss"]
[EventCountry "ENG"]
[SourceTitle "playchess.com"]
[Source "ChessBase"]
[SourceQuality "1"]
[TimeControl "5400+30"]

1. d4 {[%emt 0:03:18]} Nf6 {[%emt 0:01:26]} 2. Nf3 {[%emt 0:00:05]} e6 {[%emt 0:00:38]} 3. g3 {[%emt 0:00:05]} b6 {[%emt 0:01:24]} 4. Bg2 {[%emt 0:00:35]} Bb7 {[%emt 0:00:05]} 5. O-O {[%emt 0:00:07]} d6 {[%emt 0:02:23]} 6. c4 {[%emt 0:00:39]} Nbd7 {[%emt 0:00:22]} 7. Nc3 {[%emt 0:01:08]} e5 {[%emt 0:07:38]} 8. d5 {[%emt 0:01:26]} Be7 {[%emt 0:01:01]} 9. e4 {[%emt 0:03:25]} O-O {[%emt 0:00:41]} 10. Ne1 {[%emt 0:01:58]} Ne8 {[%emt 0:06:35]} 11. Nd3 {[%emt 0:01:12]} g6 {[%emt 0:10:45]} 12. Bh6 {[%emt 0:06:19]} Ng7 {[%emt 0:00:21]} 13. Qd2 {[%emt 0:00:04]} f5 {[%emt 0:07:06]} 14. Rae1 {[%emt 0:01:43]} Nc5 {[%emt 0:23:24]} 15. Nxc5 {[%emt 0:04:04]} bxc5 {[%emt 0:01:42]} 16. f4 {[%emt 0:00:19]} Bf6 {[%emt 0:00:51]} 17. exf5 {[%emt 0:05:06]} gxf5 {[%emt 0:01:00]} 18. fxe5 {[%emt 0:00:04]} Bxe5 {[%emt 0:01:05]} 19. Rxe5 {[%emt 0:03:52]} dxe5 {[%emt 0:00:44]} 20. Na4 {[%emt 0:00:11]} Rb8 {[%emt 0:05:21]} 21. Nxc5 {[%emt 0:03:36]} Bc8 {[%emt 0:00:50]} 22. Nd3 {[%emt 0:05:13]} Qf6 {[%emt 0:05:20]} 23. Bg5 {[%emt 0:02:29]} Qa6 {[%emt 0:04:19]} 24. b3 Re8 {[%emt 0:00:46]} 25. Be3 {[%emt 0:06:56]} Nh5 {[%emt 0:03:14]} 26. g4 {[%emt 0:03:38]} fxg4 {[%emt 0:03:07]} 27. Be4 {[%emt 0:01:47]} Nf6 {[%emt 0:02:15]} 28. Qf2 {[%emt 0:10:24]} Kg7 {[%emt 0:08:35]} 29. Nc5 {[%emt 0:00:06]} Qd6 {[%emt 0:00:29]} 30. Qh4 {[%emt 0:03:29]} Nxe4 {[%emt 0:00:37]} 31. Rf7+ {[%emt 0:00:10]} Kxf7 {[%emt 0:00:37]} 32. Qxh7+ {[%emt 0:00:04]} Kf8 {[%emt 0:00:32]} 33. Bh6+ {[%emt 0:00:31]} Qxh6 {[%emt 0:00:06]} 34. Qxh6+ {[%emt 0:00:03]} Kf7 {[%emt 0:01:39]} 35. Nxe4 {[%emt 0:02:23]} Rb6 {[%emt 0:00:17]} 36. Qh7+ {[%emt 0:00:26]} Kf8 {[%emt 0:00:11]} 37. Ng5 {[%emt 0:00:06]} Rf6 {[%emt 0:00:29]} 38. Qh8+ {[%emt 0:00:06]} Ke7 {[%emt 0:00:22]} 39. Qg7+ {[%emt 0:00:05]} 1-0

[Event "98th Caplin Hastings Masters 2024-25"]
[Site "Hastings"]
[Date "2024.12.29"]
[Round "2.22"]
[White "Samarasinghe Jude, Ranga"]
[Black "Kolani, Arjun"]
[Result "1-0"]
[ECO "D00"]
[WhiteElo "1944"]
[BlackElo "2131"]
[Annotator "RC"]
[PlyCount "93"]
[EventDate "2024.12.23"]
[EventType "swiss"]
[EventCountry "ENG"]
[SourceTitle "playchess.com"]
[Source "ChessBase"]
[SourceQuality "1"]
[TimeControl "5400+30"]

1. d4 {[%emt 0:03:28]} Nf6 {[%emt 0:00:14]} 2. e3 {[%emt 0:00:59]} d5 {[%emt 0:01:12]} 3. f4 {[%emt 0:00:15]} c5 {[%emt 0:01:18]} 4. c3 {[%emt 0:00:06]} Nc6 {[%emt 0:00:35]} 5. Nf3 {[%emt 0:00:13]} Bf5 {[%emt 0:13:01]} 6. Bd3 {[%emt 0:00:19]} Bxd3 {[%emt 0:04:42]} 7. Qxd3 {[%emt 0:00:06]} e6 {[%emt 0:01:01]} 8. Nbd2 {[%emt 0:00:28]} Be7 {[%emt 0:02:07]} 9. O-O {[%emt 0:00:48]} O-O {[%emt 0:03:57]} 10. Ne5 {[%emt 0:01:09]} Nd7 {[%emt 0:01:50]} 11. Rf3 {[%emt 0:03:18]} Ndxe5 {[%emt 0:09:14]} 12. fxe5 {[%emt 0:00:14]} f6 {[%emt 0:02:11]} 13. Rh3 {[%emt 0:06:03]} g6 {[%emt 0:00:44]} 14. exf6 {[%emt 0:08:42]} Bxf6 {[%emt 0:01:20]} 15. dxc5 {[%emt 0:00:22]} Qe7 {[%emt 0:01:49]} 16. Nb3 {[%emt 0:05:08]} Ne5 {[%emt 0:01:24]} 17. Qe2 {[%emt 0:00:26]} Nd7 {[%emt 0:02:30]} 18. e4 {[%emt 0:00:11]} Nxc5 {[%emt 0:07:00]} 19. Bh6 {[%emt 0:16:28]} Rfe8 {[%emt 0:20:39]} 20. exd5 {[%emt 0:02:45]} Nxb3 {[%emt 0:00:40]} 21. axb3 {[%emt 0:00:14]} Qc5+ {[%emt 0:01:15]} 22. Qe3 {[%emt 0:12:07]} Qxd5 {[%emt 0:00:53]} 23. Rf3 {[%emt 0:09:40]} Be7 {[%emt 0:01:15]} 24. c4 {[%emt 0:09:30]} Qc5 {[%emt 0:03:02]} 25. Raf1 {[%emt 0:00:26]} Qxe3+ {[%emt 0:01:12]} 26. Bxe3 {[%emt 0:00:05]} Rf8 {[%emt 0:00:31]} 27. Rxf8+ {[%emt 0:00:49]} Bxf8 {[%emt 0:04:02]} 28. Rd1 {[%emt 0:00:17]} Bg7 {[%emt 0:00:18]} 29. Rd7 {[%emt 0:00:37]} b6 {[%emt 0:00:22]} 30. Bd4 {[%emt 0:01:38]} Bxd4+ {[%emt 0:06:04]} 31. Rxd4 {[%emt 0:00:05]} Rf8 {[%emt 0:00:15]} 32. Rd6 {[%emt 0:01:49]} Rf6 {[%emt 0:01:10]} 33. b4 {[%emt 0:01:17]} Kf8 {[%emt 0:02:26]} 34. Rd8+ {[%emt 0:01:06]} Kg7 {[%emt 0:00:09]} 35. c5 {[%emt 0:03:52]} Rf4 {[%emt 0:01:43]} 36. c6 {[%emt 0:00:20]} Rc4 {[%emt 0:00:42]} 37. b5 {[%emt 0:00:05]} Kf6 {[%emt 0:00:28]} 38. b3 {[%emt 0:07:31]} Rc2 {[%emt 0:00:27]} 39. Rd7 {[%emt 0:01:18]} Rc5 {[%emt 0:04:21]} 40. Rd4 {[%emt 0:02:07]} Ke5 {[%emt 0:00:48]} 41. Rc4 {[%emt 0:00:30]} Kd6 {[%emt 0:01:28]} 42. Kf2 {[%emt 0:00:59]} Kc7 {[%emt 0:00:16]} 43. Rxc5 {[%emt 0:01:41]} bxc5 {[%emt 0:00:04]} 44. Ke3 {[%emt 0:00:28]} Kb6 {[%emt 0:01:16]} 45. Ke4 {[%emt 0:00:40]} a6 {[%emt 0:00:08]} 46. Ke5 {[%emt 0:00:33]} Kc7 {[%emt 0:00:53]} 47. bxa6 {[%emt 0:00:14]} 1-0

[Event "98th Caplin Hastings Masters 2024-25"]
[Site "Hastings"]
[Date "2024.12.29"]
[Round "2.23"]
[White "Briem, Benedikt"]
[Black "Mikalajunas, Kajus"]
[Result "1/2-1/2"]
[ECO "D20"]
[WhiteElo "2132"]
[BlackElo "1941"]
[Annotator "RC"]
[PlyCount "99"]
[EventDate "2024.12.23"]
[EventType "swiss"]
[EventCountry "ENG"]
[SourceTitle "playchess.com"]
[Source "ChessBase"]
[SourceQuality "1"]
[TimeControl "5400+30"]

1. d4 {[%emt 0:15:12]} d5 {[%emt 0:00:06]} 2. c4 {[%emt 0:00:05]} dxc4 {[%emt 0:00:06]} 3. e3 {[%emt 0:01:10]} e5 {[%emt 0:00:11]} 4. Bxc4 {[%emt 0:00:28]} exd4 {[%emt 0:00:13]} 5. exd4 {[%emt 0:00:07]} Bd6 {[%emt 0:00:10]} 6. Nf3 {[%emt 0:00:53]} Nf6 {[%emt 0:00:13]} 7. Qe2+ {[%emt 0:00:14]} Be7 {[%emt 0:00:22]} 8. O-O {[%emt 0:01:52]} O-O {[%emt 0:00:11]} 9. h3 {[%emt 0:10:57]} Nc6 {[%emt 0:03:56]} 10. Nc3 {[%emt 0:14:07]} Nxd4 {[%emt 0:32:58]} 11. Nxd4 {[%emt 0:00:54]} Qxd4 {[%emt 0:00:28]} 12. Nb5 {[%emt 0:02:13]} Qc5 {[%emt 0:15:21]} 13. b3 {[%emt 0:06:18]} Bd6 {[%emt 0:07:13]} 14. Ba3 {[%emt 0:01:42]} Qb6 {[%emt 0:04:58]} 15. Nxd6 {[%emt 0:07:18]} cxd6 {[%emt 0:00:16]} 16. Qe7 {[%emt 0:03:30]} Bf5 {[%emt 0:03:40]} 17. Bxd6 {[%emt 0:01:58]} Rae8 {[%emt 0:02:00]} 18. Qc7 {[%emt 0:00:10]} Qxc7 {[%emt 0:00:23]} 19. Bxc7 {[%emt 0:00:02]} Rc8 {[%emt 0:00:38]} 20. Be5 {[%emt 0:02:44]} Ne4 {[%emt 0:01:33]} 21. Rfd1 {[%emt 0:08:57]} Rfd8 {[%emt 0:02:04]} 22. Bd4 {[%emt 0:00:16]} a6 {[%emt 0:01:43]} 23. g4 {[%emt 0:02:41]} Ng5 {[%emt 0:01:17]} 24. Be3 {[%emt 0:05:05]} Nf3+ {[%emt 0:09:12]} 25. Kg2 {[%emt 0:01:26]} Be4 {[%emt 0:00:47]} 26. Kg3 {[%emt 0:00:11]} Ne5 {[%emt 0:00:37]} 27. Be2 {[%emt 0:01:20]} Bc6 {[%emt 0:03:18]} 28. Rxd8+ {[%emt 0:02:03]} Rxd8 {[%emt 0:00:02]} 29. Rc1 {[%emt 0:00:12]} Re8 {[%emt 0:02:11]} 30. h4 {[%emt 0:01:43]} Re6 {[%emt 0:00:45]} 31. a4 {[%emt 0:01:09]} Kf8 {[%emt 0:00:42]} 32. h5 {[%emt 0:00:45]} h6 {[%emt 0:00:46]} 33. Ra1 {[%emt 0:00:47]} Bd5 {[%emt 0:00:49]} 34. Rc1 {[%emt 0:03:58]} Bxb3 {[%emt 0:01:46]} 35. Rc8+ {[%emt 0:00:10]} Ke7 {[%emt 0:00:03]} 36. Rc7+ {[%emt 0:02:11]} Ke8 {[%emt 0:00:39]} 37. a5 {[%emt 0:01:11]} Bd5 {[%emt 0:00:29]} 38. Rc8+ {[%emt 0:00:14]} Ke7 {[%emt 0:00:36]} 39. Rg8 {[%emt 0:00:21]} g5 {[%emt 0:01:03]} 40. hxg6 {[%emt 0:00:45]} Rxg6 {[%emt 0:02:01]} 41. Rxg6 {[%emt 0:00:38]} fxg6 {[%emt 0:00:23]} 42. Bxh6 {[%emt 0:00:38]} Nc4 {[%emt 0:00:18]} 43. Bg5+ {[%emt 0:00:33]} Kd7 {[%emt 0:01:31]} 44. Bd3 {[%emt 0:00:52]} Bf7 {[%emt 0:00:33]} 45. Kf4 {[%emt 0:01:36]} Nxa5 {[%emt 0:01:05]} 46. Ke5 {[%emt 0:00:09]} Be6 {[%emt 0:02:34]} 47. Be2 {[%emt 0:00:18]} Nc6+ {[%emt 0:00:17]} 48. Kf6 {[%emt 0:00:46]} Ne7 {[%emt 0:00:02]} 49. Kg7 {[%emt 0:00:50]} a5 {[%emt 0:00:21]} 50. Bb5+ {[%emt 0:00:36]} 1/2-1/2

[Event "98th Caplin Hastings Masters 2024-25"]
[Site "Hastings"]
[Date "2024.12.29"]
[Round "2.24"]
[White "Hu, Junyan"]
[Black "Cheng, Louis"]
[Result "1/2-1/2"]
[ECO "B36"]
[WhiteElo "1933"]
[BlackElo "2087"]
[Annotator "NA RC"]
[PlyCount "72"]
[EventDate "2024.12.23"]
[EventType "swiss"]
[EventCountry "ENG"]
[SourceTitle "playchess.com"]
[Source "ChessBase"]
[SourceQuality "1"]
[TimeControl "5400+30"]

1. e4 {[%emt 0:00:01]} c5 {[%emt 0:00:04]} 2. Nf3 {[%emt 0:00:06]} g6 {[%emt 0:00:04]} 3. d4 {[%emt 0:00:06]} cxd4 {[%emt 0:00:03]} 4. Nxd4 {[%emt 0:00:09]} Nc6 {[%emt 0:00:04]} 5. c4 {[%emt 0:00:08]} Nf6 {[%emt 0:00:04]} 6. Nc3 {[%emt 0:00:05]} Nxd4 {[%emt 0:00:05]} 7. Qxd4 {[%emt 0:00:12]} d6 {[%emt 0:00:03]} 8. Be3 {[%emt 0:00:13]} Bg7 {[%emt 0:00:05]} 9. f3 {[%emt 0:00:11]} O-O {[%emt 0:00:05]} 10. Qd2 {[%emt 0:00:08]} Be6 {[%emt 0:00:05]} 11. Rc1 {[%emt 0:01:30]} Qa5 {[%emt 0:00:14]} 12. Be2 {[%emt 0:00:34]} Rfc8 {[%emt 0:00:13]} 13. b3 {[%emt 0:00:54]} a6 {[%emt 0:00:11]} 14. Na4 {[%emt 0:01:56]} Qxd2+ {[%emt 0:00:06]} 15. Kxd2 {[%emt 0:00:04]} Nd7 {[%emt 0:00:08]} 16. g4 {[%emt 0:01:37]} f5 {[%emt 0:00:06]} 17. exf5 {[%emt 0:01:47]} gxf5 {[%emt 0:00:06]} 18. Rhf1 {[%emt 0:00:07]} Rf8 {[%emt 0:05:00]} 19. gxf5 {[%emt 0:01:13]} Bxf5 {[%emt 0:00:16]} 20. Rg1 {[%emt 0:01:11]} Bg6 {[%emt 0:05:54]} 21. Nc3 {[%emt 0:00:32]} Nf6 {[%emt 0:08:22]} 22. Bd3 {[%emt 0:04:01]} Kf7 {[%emt 0:02:14]} 23. Bxg6+ {[%emt 0:01:09]} hxg6 {[%emt 0:00:06]} 24. Rg2 {[%emt 0:00:39]} Rh8 {[%emt 0:02:06]} 25. Rcg1 {[%emt 0:00:55]} Bh6 {[%emt 0:01:23]} 26. Rxg6 {[%emt 0:01:29]} Bxe3+ {[%emt 0:00:08]} 27. Kxe3 {[%emt 0:00:13]} Rxh2 {[%emt 0:00:10]} 28. R6g2 {[%emt 0:00:53]} Rah8 {[%emt 0:01:19]} 29. Rg7+ {[%emt 0:01:19]} Ke6 {[%emt 0:00:11]} 30. Ne2 {[%emt 0:00:17]} Kd7 {[%emt 0:03:10]} 31. Rf7 {[%emt 0:00:59]} R8h5 {[%emt 0:01:21]} 32. Nd4 {[%emt 0:03:13]} Rh7 {[%emt 0:05:15]} 33. Rxh7 {[%emt 0:00:43]} Nxh7 {[%emt 0:01:10]} 34. Ne2 {[%emt 0:00:55]} Nf6 {[%emt 0:00:42]} 35. Nc3 {[%emt 0:01:03]} Rc2 {[%emt 0:00:31]} 36. Kd3 {[%emt 0:00:10]} Rf2 {[%emt 0:00:12]} 1/2-1/2

[Event "98th Caplin Hastings Masters 2024-25"]
[Site "Hastings"]
[Date "2024.12.29"]
[Round "2.25"]
[White "Alcindor, Samuel"]
[Black "Zhang, Junyi"]
[Result "0-1"]
[ECO "B23"]
[WhiteElo "1927"]
[BlackElo "2070"]
[Annotator "NA RC"]
[PlyCount "114"]
[EventDate "2024.12.23"]
[EventType "swiss"]
[EventCountry "ENG"]
[SourceTitle "playchess.com"]
[Source "ChessBase"]
[SourceQuality "1"]
[TimeControl "5400+30"]

1. e4 {[%emt 0:01:34]} c5 {[%emt 0:00:01]} 2. Nc3 {[%emt 0:00:07]} Nc6 {[%emt 0:00:15]} 3. f4 {[%emt 0:00:16]} g6 {[%emt 0:00:35]} 4. Bc4 {[%emt 0:00:49]} Bg7 {[%emt 0:00:30]} 5. Nf3 {[%emt 0:00:15]} d6 {[%emt 0:01:03]} 6. O-O {[%emt 0:03:40]} e6 {[%emt 0:00:48]} 7. f5 {[%emt 0:08:27]} exf5 {[%emt 0:08:11]} 8. d3 {[%emt 0:02:09]} Nge7 {[%emt 0:01:01]} 9. Ng5 {[%emt 0:05:41]} Ne5 {[%emt 0:01:39]} 10. Bb3 {[%emt 0:04:05]} O-O {[%emt 0:03:32]} 11. Qe1 {[%emt 0:02:59]} h6 {[%emt 0:09:45]} 12. exf5 {[%emt 0:25:46]} Nxf5 {[%emt 0:00:56]} 13. Nge4 {[%emt 0:01:13]} Be6 {[%emt 0:01:58]} 14. Nd5 {[%emt 0:01:29]} b5 {[%emt 0:01:15]} 15. Nf4 {[%emt 0:02:11]} Bxb3 {[%emt 0:02:27]} 16. axb3 {[%emt 0:00:12]} d5 {[%emt 0:27:18]} 17. Ng3 {[%emt 0:09:57]} Re8 {[%emt 0:06:43]} 18. Qa5 {[%emt 0:06:41]} Nd4 {[%emt 0:04:51]} 19. Qd2 {[%emt 0:07:26]} Ng4 {[%emt 0:06:19]} 20. Qd1 {[%emt 0:04:07]} Ne5 {[%emt 0:12:40]} 21. Qd2 {[%emt 0:02:11]} c4 {[%emt 0:01:51]} 22. bxc4 {[%emt 0:02:21]} dxc4 {[%emt 0:01:16]} 23. Ne4 {[%emt 0:02:44]} cxd3 {[%emt 0:00:00]} 24. Nxd3 {[%emt 0:01:31]} Nc4 {[%emt 0:00:51]} 25. Qf2 {[%emt 0:01:21]} Rxe4 {[%emt 0:03:52]} 26. Qxf7+ {[%emt 0:00:13]} Kh7 {[%emt 0:00:04]} 27. Ra6 {[%emt 0:01:13]} Qe8 {[%emt 0:01:49]} 28. Nc5 {[%emt 0:02:26]} Qxf7 {[%emt 0:02:06]} 29. Rxf7 {[%emt 0:00:11]} Re1+ {[%emt 0:00:11]} 30. Rf1 {[%emt 0:00:44]} Ne2+ {[%emt 0:00:37]} 31. Kf2 {[%emt 0:00:19]} Rxf1+ {[%emt 0:00:27]} 32. Kxf1 {[%emt 0:00:32]} Nxc1 {[%emt 0:00:01]} 33. b3 {[%emt 0:00:26]} Ne3+ {[%emt 0:00:51]} 34. Ke1 {[%emt 0:00:51]} Bc3+ {[%emt 0:00:14]} 35. Kf2 {[%emt 0:00:06]} Nxc2 {[%emt 0:00:10]} 36. Ne6 {[%emt 0:00:38]} Nxb3 {[%emt 0:01:46]} 37. Rc6 {[%emt 0:00:07]} Bd4+ {[%emt 0:00:10]} 38. Kf3 {[%emt 0:01:32]} Nb4 {[%emt 0:00:26]} 39. Rc7+ {[%emt 0:00:17]} Kh8 {[%emt 0:00:13]} 40. Kg4 {[%emt 0:00:55]} Nd5 {[%emt 0:00:26]} 41. Rb7 {[%emt 0:00:29]} Nc5 {[%emt 0:00:58]} 42. Nxc5 {[%emt 0:00:25]} Bxc5 {[%emt 0:00:06]} 43. Rxb5 {[%emt 0:00:08]} Nf6+ {[%emt 0:00:01]} 44. Kf3 {[%emt 0:00:11]} Bf8 {[%emt 0:00:11]} 45. Ra5 {[%emt 0:00:11]} Kg7 {[%emt 0:00:49]} 46. Ra6 {[%emt 0:00:08]} Bc5 {[%emt 0:00:05]} 47. Ra5 {[%emt 0:00:16]} Bb6 {[%emt 0:00:10]} 48. Rb5 {[%emt 0:00:30]} Nd7 {[%emt 0:00:05]} 49. Ke4 {[%emt 0:00:21]} a6 {[%emt 0:00:16]} 50. Rb1 {[%emt 0:00:09]} Nf6+ {[%emt 0:00:52]} 51. Kd3 {[%emt 0:00:18]} Bc5 {[%emt 0:00:09]} 52. Kc4 {[%emt 0:00:15]} Be7 {[%emt 0:00:05]} 53. Rb7 {[%emt 0:00:17]} Rc8+ {[%emt 0:00:05]} 54. Kb3 {[%emt 0:00:20]} Kf7 {[%emt 0:00:04]} 55. Ka4 {[%emt 0:00:11]} Rc2 {[%emt 0:00:52]} 56. Ka5 {[%emt 0:00:19]} Ra2+ {[%emt 0:00:03]} 57. Kb6 {[%emt 0:00:11]} Rb2+ {[%emt 0:00:02]} 0-1